bitfinex-derivatives/quotes_BTCF0:USTF0_20251202
["timestamp","ask_amount","ask_price","bid_price","bid_amount"]
[1764682948226,0.07404,87535.0,87534.0,0.03061894]
[1764682948426,0.0683454,87530.0,87527.0,0.03061894]
[1764682948627,0.07404,87528.0,87527.0,0.03061894]
[1764682948830,0.05692,87527.0,87526.0,0.04204474]
[1764682949233,0.05704936,87527.0,87526.0,0.0114258]
[1764682953229,0.05704936,87527.0,87526.0,0.0686958]
[1764682955346,0.05704936,87527.0,87526.0,0.0696958]
[1764682957036,0.05704936,87527.0,87526.0,0.0706958]
[1764682958350,0.00012936,87527.0,87526.0,0.0706958]
[1764682958948,0.00012936,87527.0,87526.0,0.4314958]
[1764682959143,0.00012936,87527.0,87526.0,0.47216997]
[1764682959346,0.00012936,87527.0,87526.0,0.44935633]
[1764682959741,0.00012936,87527.0,87526.0,0.94935633]
[1764682962250,0.00012936,87527.0,87526.0,1.48171633]
[1764682962450,0.02935936,87527.0,87526.0,1.48171633]
[1764682962651,0.05666936,87527.0,87526.0,1.48171633]
[1764682962847,0.05666936,87527.0,87526.0,0.94935633]
[1764682963448,0.05666936,87527.0,87526.0,0.44935633]
[1764682963953,0.05666936,87527.0,87526.0,0.49014295]
[1764682964249,0.05666936,87527.0,87526.0,0.47871715]
[1764682964452,0.05666936,87527.0,87526.0,0.49014305]
[1764682964842,0.05666936,87527.0,87526.0,0.43287305]
[1764682965045,0.05666936,87527.0,87526.0,0.38066053]
[1764682965653,0.05666936,87527.0,87526.0,0.002]
[1764682966342,0.05666936,87527.0,87526.0,0.001]
[1764682966550,0.05666936,87527.0,87526.0,0.002]
[1764682967351,0.05654,87522.0,87521.0,0.0114265]
[1764682968955,0.0679664,87522.0,87521.0,0.0114265]
[1764682970046,0.05654,87522.0,87521.0,0.0114265]
[1764682970644,0.05654,87522.0,87521.0,0.04203283]
[1764682971958,0.0679664,87522.0,87521.0,0.04203283]
[1764682972154,0.0679664,87522.0,87521.0,0.0114265]
[1764682972554,0.0679664,87522.0,87521.0,0.04203283]
[1764682973053,0.0679664,87522.0,87521.0,0.0114265]
[1764682975559,0.05654,87522.0,87521.0,0.0114265]
[1764682976258,0.05654,87522.0,87521.0,0.04203283]
[1764682976661,0.05654,87522.0,87521.0,0.0685065]
[1764682976848,0.05654,87522.0,87521.0,0.08637]
[1764682977560,0.05654,87522.0,87521.0,0.0685065]
[1764682977959,0.05654,87522.0,87521.0,0.001]
[1764682978158,0.05654,87522.0,87521.0,0.002]
[1764682978664,0.05654,87522.0,87521.0,0.001]
[1764682978858,0.05810762,87522.0,87521.0,0.001]
[1764682979452,0.05810762,87522.0,87521.0,0.05808]
[1764682979760,0.05810762,87522.0,87521.0,0.07494411]
[1764682979958,0.05810762,87522.0,87521.0,0.05708]
[1764682980565,0.05810762,87522.0,87521.0,0.07494411]
[1764682981249,0.00156762,87522.0,87521.0,0.07494411]
[1764682981451,0.00156762,87522.0,87521.0,0.08716411]
[1764682981656,0.00156762,87522.0,87521.0,0.08816411]
[1764682981965,0.05810762,87522.0,87521.0,0.07694411]
[1764682982664,0.00156762,87522.0,87521.0,0.0713]
[1764682982866,0.00156762,87522.0,87521.0,0.08916325]
[1764682983281,0.00156762,87522.0,87521.0,0.09016325]
[1764682983761,0.00156762,87522.0,87521.0,0.08816325]
[1764682983968,0.00156762,87522.0,87521.0,0.59116325]
[1764682984362,0.00156762,87522.0,87521.0,1.62052325]
[1764682984563,0.00156762,87522.0,87521.0,1.62352325]
[1764682985869,0.00156762,87522.0,87521.0,1.62052325]
[1764682986066,0.00156762,87522.0,87521.0,1.62352325]
[1764682988372,0.00156762,87522.0,87521.0,1.62352069]
[1764682993461,0.00156762,87522.0,87521.0,1.62252069]
[1764682993771,0.00156762,87522.0,87521.0,1.62352069]
[1764682997872,0.02971762,87522.0,87521.0,1.62352069]
[1764682998463,0.00156762,87522.0,87521.0,1.62352069]
[1764682999177,0.00156762,87522.0,87521.0,1.62252069]
[1764682999674,0.00156762,87522.0,87521.0,1.62052069]
[1764682999874,0.00156762,87522.0,87521.0,1.62352069]
[1764683000277,0.00012936,87527.0,87526.0,0.0690659]
[1764683000478,0.0173,87542.0,87535.0,0.0690648]
[1764683000676,0.0173,87542.0,87535.0,0.97996549]
[1764683001073,0.01712,87549.0,87535.0,0.97996549]
[1764683001573,0.07344,87558.0,87557.0,0.0690619]
[1764683004283,0.07344,87558.0,87557.0,0.0114219]
[1764683005367,0.01663,87558.0,87556.0,0.011422]
[1764683005572,0.05681,87557.0,87556.0,0.011422]
[1764683006978,0.05681,87557.0,87554.0,0.89304]
[1764683007179,0.05681,87555.0,87553.0,0.0114224]
[1764683007381,0.05681,87555.0,87554.0,0.0114222]
[1764683011490,0.05681,87555.0,87554.0,0.4298622]
[1764683013381,0.05681,87555.0,87554.0,0.4308622]
[1764683013803,0.05681,87555.0,87554.0,0.4318622]
[1764683014590,0.05681,87555.0,87554.0,0.4308622]
[1764683014782,0.05681,87555.0,87554.0,0.4318622]
[1764683014982,0.05681,87555.0,87554.0,0.002]
[1764683015195,0.0682321,87555.0,87554.0,0.002]
[1764683015397,0.02853,87559.0,87558.0,0.0676018]
[1764683016683,0.02853,87559.0,87558.0,0.09819096]
[1764683016887,0.07294,87564.0,87563.0,0.0676011]
[1764683019198,0.07403,87558.0,87557.0,0.05769199]
[1764683019394,0.07403,87558.0,87554.0,0.3608]
[1764683019395,0.05631,87555.0,87554.0,0.38792]
[1764683019902,0.05631,87555.0,87554.0,0.02712]
[1764683020200,0.05631,87550.0,87546.0,0.53204]
[1764683020601,0.05631,87550.0,87547.0,0.0114231]
[1764683025707,0.07294,87564.0,87563.0,0.0676011]
[1764683028599,0.07294,87564.0,87563.0,0.0114211]
[1764683028899,0.07294,87564.0,87563.0,0.0385411]
[1764683029200,0.07294,87564.0,87563.0,0.0676011]
[1764683032796,0.07294,87564.0,87558.0,0.39136987]
[1764683033000,0.05631,87558.0,87557.0,0.0114219]
[1764683033200,0.07403,87558.0,87557.0,0.0114219]
[1764683033399,0.01772,87558.0,87554.0,0.0114222]
[1764683033602,0.05631,87555.0,87554.0,0.0114222]
[1764683033806,0.0677323,87555.0,87554.0,0.0114222]
[1764683034197,0.05631,87555.0,87554.0,0.0676022]
[1764683034605,0.05631,87555.0,87554.0,0.09817207]
[1764683034806,0.05631,87555.0,87554.0,0.09917207]
[1764683035813,0.05631,87555.0,87554.0,0.04299207]
[1764683035997,0.05631,87555.0,87554.0,0.0124222]
[1764683036608,0.0677321,87555.0,87554.0,0.0124222]
[1764683036796,0.0677321,87555.0,87554.0,0.001]
[1764683037002,0.4285321,87555.0,87554.0,0.001]
[1764683037301,0.0677328,87550.0,87549.0,0.01159423]
[1764683039821,0.0677328,87550.0,87549.0,0.00017133]
[1764683040716,0.05631,87550.0,87549.0,0.42857423]
[1764683041011,0.05631,87550.0,87549.0,0.06777423]
[1764683041400,0.05631,87550.0,87549.0,0.09837128]
[1764683042207,0.05631,87550.0,87549.0,0.03176838]
[1764683042409,0.05631,87541.0,87540.0,0.3608]
[1764683043325,0.05631,87541.0,87526.0,0.01125996]
[1764683043326,0.05575,87531.0,87530.0,0.04075983]
[1764683043617,0.05575,87531.0,87526.0,0.01125996]
[1764683043618,0.05575,87527.0,87526.0,0.01125996]
[1764683043807,0.05575,87523.0,87522.0,0.06713773]
[1764683044002,0.0171,87535.0,87534.0,0.0114249]
[1764683044204,0.05575,87535.0,87534.0,0.0669649]
[1764683045403,0.02817133,87539.0,87538.0,0.0669644]
[1764683045608,0.02817133,87539.0,87538.0,0.4277644]
[1764683045812,0.05592133,87539.0,87538.0,0.4277644]
[1764683047517,0.06734553,87539.0,87538.0,0.3608]
[1764683047916,0.05592133,87539.0,87538.0,0.41634]
[1764683048822,0.05592133,87539.0,87538.0,0.4277644]
[1764683050327,0.00017133,87539.0,87538.0,0.4277644]
[1764683051720,0.00017133,87539.0,87538.0,0.4297644]
[1764683052125,0.00017133,87539.0,87538.0,0.4287644]
[1764683052126,0.05592133,87539.0,87538.0,0.4287644]
[1764683052316,0.05592133,87539.0,87538.0,0.4008844]
[1764683052623,0.05592133,87539.0,87538.0,0.4287644]
[1764683053519,0.05592133,87539.0,87538.0,0.4277644]
[1764683054515,0.00017133,87539.0,87538.0,0.4157644]
[1764683056415,0.00017133,87539.0,87538.0,0.7765644]
[1764683056622,0.00017133,87539.0,87538.0,0.7775644]
[1764683056818,0.00017133,87539.0,87538.0,0.7785644]
[1764683057214,0.00017133,87539.0,87538.0,0.81932423]
[1764683057612,0.00017133,87539.0,87538.0,0.7785644]
[1764683058212,0.00017133,87539.0,87538.0,0.81932423]
[1764683058722,0.00017133,87539.0,87538.0,0.7785644]
[1764683059324,0.00017133,87539.0,87538.0,0.81932423]
[1764683060222,0.00017133,87539.0,87538.0,0.7785644]
[1764683060423,0.00017133,87539.0,87538.0,0.79642263]
[1764683061324,0.00017133,87539.0,87538.0,1.29642263]
[1764683061509,0.00017133,87539.0,87538.0,1.79642263]
[1764683062125,0.00017133,87539.0,87538.0,1.85760095]
[1764683062324,0.00017133,87539.0,87538.0,1.8576003]
[1764683062517,0.41655,87562.0,87561.0,0.0669614]
[1764683063725,0.0671723,87554.0,87553.0,0.00017133]
[1764683063912,0.4279723,87554.0,87553.0,0.00017133]
[1764683064831,0.4289723,87554.0,87553.0,0.00017133]
[1764683066214,0.05675,87554.0,87553.0,0.00017133]
[1764683066416,0.05675,87554.0,87553.0,0.02783133]
[1764683066724,0.05675,87554.0,87553.0,0.00017133]
[1764683068026,0.4289723,87554.0,87553.0,0.00017133]
[1764683069211,0.4279723,87554.0,87553.0,1.33e-06]
[1764683069412,0.4289723,87554.0,87553.0,1.33e-06]
[1764683069818,0.4279723,87554.0,87553.0,1.33e-06]
[1764683070022,0.4299723,87554.0,87553.0,1.33e-06]
[1764683070419,0.4279723,87554.0,87553.0,0.01142373]
[1764683070609,0.4299723,87554.0,87553.0,0.01142373]
[1764683072029,0.4279723,87554.0,87553.0,0.01142373]
[1764683072224,0.4299723,87554.0,87553.0,0.01142373]
[1764683072622,0.4279723,87554.0,87553.0,0.01142373]
[1764683072826,0.4299723,87554.0,87553.0,0.01142373]
[1764683073623,0.4279723,87554.0,87553.0,0.01142373]
[1764683073827,0.8299723,87554.0,87553.0,0.01142373]
[1764683074018,0.7742223,87554.0,87553.0,1.33e-06]
[1764683074528,0.7628,87554.0,87553.0,0.01142373]
[1764683074828,0.7628,87554.0,87553.0,1.33e-06]
[1764683078732,0.3628,87554.0,87553.0,1.33e-06]
[1764683080117,0.42381771,87554.0,87553.0,1.33e-06]
[1764683080319,0.0114251,87532.0,87531.0,0.04081721]
[1764683080522,0.0737,87528.0,87527.0,0.40161721]
[1764683080723,0.0737,87528.0,87527.0,0.3608]
[1764683081734,0.0737,87521.0,87520.0,0.05648]
[1764683083237,0.0851266,87521.0,87520.0,0.0679067]
[1764683084136,0.0737,87521.0,87520.0,0.0679067]
[1764683084333,0.05633,87534.0,87533.0,0.05648]
[1764683085422,0.0687549,87534.0,87533.0,0.05648]
[1764683085626,0.05733,87534.0,87533.0,0.05648]
[1764683086134,0.05633,87534.0,87533.0,0.05648]
[1764683095856,0.05633,87534.0,87533.0,0.05748]
[1764683096461,0.05633,87534.0,87533.0,0.05648]
[1764683102461,0.011425,87534.0,87531.0,0.03066044]
[1764683102655,0.05725,87529.0,87528.0,0.42043044]
[1764683102860,0.05725,87529.0,87528.0,0.4169]
[1764683103572,0.05725,87529.0,87528.0,0.3608]
[1764683105263,0.0686757,87528.0,87527.0,0.0114258]
[1764683106258,0.05725,87528.0,87527.0,0.0675258]
[1764683106462,0.05725,87528.0,87527.0,0.09819376]
[1764683106463,0.05825,87528.0,87527.0,0.09819376]
[1764683106663,0.001,87528.0,87527.0,0.4283258]
[1764683107262,0.001,87528.0,87527.0,0.44618756]
[1764683107774,0.01737,87540.0,87535.0,0.0675248]
[1764683107775,0.05742133,87536.0,87535.0,0.0675248]
[1764683108070,0.05742133,87536.0,87535.0,0.4283248]
[1764683109071,0.03011133,87536.0,87535.0,0.46921305]
[1764683109276,0.03011133,87536.0,87535.0,0.48707317]
[1764683109570,0.05742133,87536.0,87535.0,0.4283248]
[1764683109771,0.05742133,87536.0,87535.0,0.46921305]
[1764683110363,0.00017133,87536.0,87535.0,0.4283248]
[1764683110673,0.00017133,87536.0,87535.0,0.44618514]
[1764683111262,0.00017133,87536.0,87535.0,0.94618514]
[1764683111669,0.00017133,87536.0,87535.0,1.44618514]
[1764683112972,0.03011133,87536.0,87535.0,1.44618514]
[1764683113180,0.05742133,87536.0,87535.0,1.44618514]
[1764683113774,0.00017133,87536.0,87535.0,0.94618514]
[1764683116175,0.00017133,87536.0,87535.0,1.0075212]
[1764683117176,0.00017133,87536.0,87535.0,1.5075212]
[1764683117480,0.00017133,87536.0,87535.0,1.44618514]
[1764683120771,0.03011133,87536.0,87535.0,1.4283248]
[1764683121082,0.02994,87558.0,87557.0,0.0675219]
[1764683121284,0.05725,87564.0,87563.0,0.0675211]
[1764683121772,0.05725,87564.0,87563.0,0.0789654]
[1764683121972,0.05725,87570.0,87569.0,0.0675203]
[1764683122169,0.05725,87570.0,87569.0,0.4283203]
[1764683124186,0.05825,87570.0,87569.0,0.4283203]
[1764683124480,0.06025,87570.0,87569.0,0.4283203]
[1764683126174,0.01664,87564.0,87563.0,0.0114211]
[1764683126377,0.07389,87564.0,87563.0,0.5721111]
[1764683126579,0.05725,87558.0,87557.0,0.3722219]
[1764683126782,0.05725,87558.0,87557.0,0.9600419]
[1764683127786,0.05925,87558.0,87557.0,0.9600419]
[1764683128282,0.06025,87558.0,87557.0,0.9600419]
[1764683132591,0.03294,87558.0,87557.0,0.9600419]
[1764683132785,0.003,87558.0,87557.0,0.9600419]
[1764683133374,0.07652,87558.0,87557.0,0.9599619]
[1764683134586,0.07652,87558.0,87557.0,0.94854]
[1764683137894,0.07652,87558.0,87557.0,0.4169]
[1764683138192,0.07652,87558.0,87557.0,0.58774]
[1764683139383,0.068322,87556.0,87555.0,0.00017133]
[1764683139680,0.0569,87556.0,87555.0,0.02740133]
[1764683139885,0.0569,87556.0,87555.0,0.05534133]
[1764683140894,0.0589,87556.0,87555.0,0.05534133]
[1764683141698,0.002,87556.0,87555.0,0.05534133]
[1764683142488,0.3608,87573.0,87571.0,0.0665901]
[1764683143186,0.06164629,87586.0,87571.0,0.0665901]
[1764683143387,0.05707133,87572.0,87571.0,0.0665901]
[1764683143797,0.06007133,87572.0,87571.0,0.0665901]
[1764683144287,0.00317133,87572.0,87571.0,0.0665901]
[1764683145098,0.03180133,87572.0,87571.0,0.0665901]
[1764683147095,0.00317133,87572.0,87571.0,0.0665901]
[1764683148601,0.00317133,87572.0,87571.0,0.58444244]
[1764683148899,0.0569,87588.0,87587.0,0.066588]
[1764683150187,0.0579,87588.0,87587.0,0.066588]
[1764683150588,0.001,87588.0,87587.0,0.066588]
[1764683152193,0.00017133,87596.0,87595.0,0.0665869]
[1764683152404,0.00017133,87596.0,87595.0,0.4273869]
[1764683153405,0.00117133,87596.0,87595.0,0.4273869]
[1764683157815,0.02980133,87596.0,87595.0,0.4273869]
[1764683158005,0.00117133,87596.0,87595.0,0.4273869]
[1764683158510,0.00117133,87596.0,87595.0,0.4293869]
[1764683158916,0.00017133,87596.0,87595.0,0.4273869]
[1764683159117,0.00017133,87596.0,87595.0,0.4303869]
[1764683162307,0.3608,87608.0,87607.0,0.0665854]
[1764683162514,0.3608,87608.0,87607.0,0.5979454]
[1764683163313,0.3608,87618.0,87617.0,0.0680541]
[1764683163314,0.41875,87618.0,87617.0,0.0680541]
[1764683164809,0.02957123,87626.0,87625.0,0.05664]
[1764683165309,0.05812123,87626.0,87625.0,0.05664]
[1764683166217,0.05912123,87626.0,87625.0,0.05664]
[1764683168012,0.0114134,87622.0,87621.0,0.02906]
[1764683168215,0.0693634,87622.0,87621.0,0.05664]
[1764683168518,0.05795,87622.0,87621.0,0.05664]
[1764683170710,0.07439,87618.0,87617.0,0.00017123]
[1764683172013,0.43519,87618.0,87617.0,0.00017123]
[1764683172513,0.0408165,87599.0,87598.0,0.0114163]
[1764683172716,0.0693664,87599.0,87598.0,0.05664]
[1764683172921,0.05795,87599.0,87598.0,0.05664]
[1764683173610,0.05795,87599.0,87598.0,0.05764]
[1764683173816,0.05795,87599.0,87598.0,0.001]
[1764683174425,0.05795,87599.0,87598.0,0.03106]
[1764683174639,0.0294,87599.0,87598.0,0.05864]
[1764683174820,0.07439,87606.0,87605.0,0.0680556]
[1764683175119,0.05795,87606.0,87605.0,0.0680556]
[1764683175322,0.05795,87599.0,87598.0,0.05864]
[1764683175527,0.05795,87599.0,87598.0,0.05764]
[1764683175825,0.05795,87599.0,87598.0,0.05664]
[1764683176212,0.0294,87599.0,87598.0,0.05664]
[1764683176426,0.05795,87605.0,87604.0,0.0114158]
[1764683176625,0.05795,87605.0,87604.0,0.0680558]
[1764683177624,0.0294,87605.0,87604.0,0.05664]
[1764683177816,0.00017123,87607.0,87605.0,0.0114156]
[1764683178026,0.00017123,87607.0,87606.0,0.05664]
[1764683178917,0.00017123,87607.0,87606.0,0.08715192]
[1764683179125,0.00017123,87607.0,87606.0,0.08715216]
[1764683179325,0.00017123,87607.0,87606.0,0.55664]
[1764683179520,0.00017123,87607.0,87606.0,0.58716239]
[1764683179723,0.00017123,87607.0,87606.0,0.55664]
[1764683179928,0.00017123,87607.0,87606.0,1.05664]
[1764683180228,0.05812123,87607.0,87606.0,1.05664]
[1764683180424,0.05812123,87607.0,87606.0,1.02906]
[1764683180616,0.05812123,87607.0,87606.0,0.52906]
[1764683180816,0.05812123,87607.0,87606.0,0.5]
[1764683181325,0.05812123,87607.0,87606.0,0.52906]
[1764683181525,0.05812123,87607.0,87606.0,0.02906]
[1764683181725,0.07439,87605.0,87604.0,0.0114157]
[1764683182322,0.07439,87605.0,87604.0,0.0404757]
[1764683182520,0.07439,87605.0,87604.0,0.02906]
[1764683182722,0.0693658,87604.0,87603.0,0.3608]
[1764683183433,0.0114166,87599.0,87595.0,0.3608]
[1764683183736,0.07439,87591.0,87590.0,0.03069362]
[1764683183921,0.07439,87591.0,87590.0,0.00017123]
[1764683184526,0.07439,87591.0,87590.0,0.02923123]
[1764683184918,0.07439,87591.0,87590.0,0.00017123]
[1764683185832,0.05795,87591.0,87590.0,0.05681123]
[1764683186020,0.0294,87591.0,87590.0,0.05681123]
[1764683186220,0.05795,87591.0,87590.0,0.05681123]
[1764683186518,0.05795,87598.0,87597.0,0.05664]
[1764683186723,0.0294,87598.0,87597.0,0.0680567]
[1764683186922,0.05795,87598.0,87597.0,0.0680567]
[1764683187829,0.05795,87598.0,87597.0,0.0690567]
[1764683188826,0.05795,87598.0,87597.0,0.0700567]
[1764683189620,0.05795,87598.0,87597.0,0.0690567]
[1764683189826,0.05795,87598.0,87597.0,0.0700567]
[1764683190638,0.07439,87598.0,87597.0,0.0700567]
[1764683190844,0.07439,87598.0,87597.0,0.05864]
[1764683191221,0.0294,87598.0,87597.0,0.05864]
[1764683191539,0.07439,87605.0,87604.0,0.05664]
[1764683191925,0.00017123,87607.0,87606.0,0.05664]
[1764683192127,0.02957123,87607.0,87606.0,0.05664]
[1764683192323,0.00017123,87607.0,87606.0,0.05664]
[1764683192730,0.0561,87602.0,87601.0,0.3886]
[1764683192928,0.0561,87602.0,87601.0,0.41812]
[1764683194442,0.0561,87602.0,87601.0,0.3618]
[1764683195239,0.0561,87602.0,87601.0,0.3732161]
[1764683196045,0.067516,87602.0,87601.0,0.3732161]
[1764683196237,0.067516,87602.0,87601.0,0.3722161]
[1764683197354,0.0561,87602.0,87601.0,0.4295361]
[1764683198352,0.00017123,87607.0,87601.0,0.4295361]
[1764683198655,0.05627123,87607.0,87606.0,0.0687355]
[1764683202858,0.02825123,87607.0,87606.0,0.0687355]
[1764683203067,0.00017123,87607.0,87606.0,0.0687355]
[1764683205863,0.05627123,87607.0,87606.0,0.0687355]
[1764683207061,0.06768663,87607.0,87606.0,0.0687355]
[1764683207254,0.05627123,87607.0,87606.0,0.0687355]
[1764683207566,0.05627123,87607.0,87606.0,0.0392155]
[1764683208158,0.05627123,87607.0,87606.0,0.0687355]
[1764683208349,0.05627123,87607.0,87602.0,0.0114159]
[1764683208350,0.0114155,87606.0,87602.0,0.0114159]
[1764683208557,0.0561,87603.0,87602.0,0.011416]
[1764683208962,0.0561,87603.0,87602.0,0.068736]
[1764683209262,0.02808,87603.0,87602.0,0.068736]
[1764683209764,0.02808,87603.0,87602.0,0.069736]
[1764683210150,0.0561,87603.0,87602.0,0.069736]
[1764683212060,0.0561,87603.0,87602.0,0.068736]
[1764683212364,0.0561,87603.0,87602.0,0.069736]
[1764683212665,0.0675159,87603.0,87602.0,0.069736]
[1764683212868,0.0675159,87603.0,87602.0,0.05832]
[1764683213770,0.0675159,87603.0,87602.0,0.001]
[1764683216063,0.0675168,87596.0,87595.0,0.0114168]
[1764683216765,0.0114173,87592.0,87590.0,0.01158873]
[1764683217065,0.07347,87591.0,87590.0,0.01158873]
[1764683218853,0.07347,87591.0,87590.0,0.00017123]
[1764683220361,0.0675184,87584.0,87583.0,0.03053694]
[1764683220560,0.067519,87579.0,87578.0,0.03053694]
[1764683220755,0.0675197,87574.0,87572.0,0.03053694]
[1764683220961,0.0561,87571.0,87569.0,0.03053694]
[1764683221161,0.0561,87568.0,87567.0,0.39133694]
[1764683221360,0.0287902,87570.0,87565.0,0.03053694]
[1764683221361,0.0561,87566.0,87565.0,0.03053694]
[1764683221565,0.0561,87560.0,87559.0,0.08802817]
[1764683221760,0.0561,87560.0,87559.0,0.05749123]
[1764683222567,0.0561,87560.0,87559.0,0.00017123]
[1764683223972,0.0561,87560.0,87559.0,0.05674123]
[1764683225360,0.3608,87566.0,87565.0,0.0679908]
[1764683225877,0.38782,87566.0,87565.0,0.0679908]
[1764683226174,0.3608,87566.0,87565.0,0.0679908]
[1764683226774,0.38782,87566.0,87565.0,0.0679908]
[1764683227071,0.38782,87566.0,87565.0,0.0689908]
[1764683227462,0.41515,87566.0,87565.0,0.05757]
[1764683227663,0.41515,87566.0,87565.0,0.001]
[1764683228073,0.0657715,87560.0,87559.0,0.00017123]
[1764683229471,0.0657715,87560.0,87559.0,0.02757123]
[1764683229681,0.0657715,87560.0,87559.0,0.05674123]
[1764683231074,0.02702,87564.0,87563.0,0.05657]
[1764683231378,0.3608,87566.0,87565.0,0.05657]
[1764683232164,0.05435,87572.0,87571.0,0.06799]
[1764683232573,0.05435,87572.0,87571.0,0.05657]
[1764683233673,0.0833304,87568.0,87567.0,0.0274]
[1764683234381,0.0833304,87568.0,87567.0,0.05657]
[1764683235282,0.05435,87568.0,87567.0,0.05657]
[1764683235477,0.02702,87568.0,87567.0,0.05657]
[1764683235682,0.43269123,87576.0,87575.0,0.05657]
[1764683236483,0.05435,87568.0,87567.0,0.05857]
[1764683237469,0.05435,87568.0,87567.0,0.0699905]
[1764683237882,0.05435,87568.0,87567.0,0.0689905]
[1764683238176,0.05435,87568.0,87567.0,0.0679905]
[1764683238577,0.05435,87568.0,87567.0,0.0689905]
[1764683239179,0.05435,87568.0,87567.0,0.0699905]
[1764683240184,0.41532123,87576.0,87575.0,0.0679895]
[1764683240585,0.38799123,87576.0,87575.0,0.0679895]
[1764683240781,0.38799123,87576.0,87575.0,0.4287895]
[1764683240782,0.00017123,87576.0,87575.0,0.4287895]
[1764683243170,0.05452123,87576.0,87575.0,0.0679895]
[1764683243580,0.05435,87573.0,87572.0,0.05797414]
[1764683243780,0.0657699,87572.0,87571.0,0.03057414]
[1764683243977,0.0657699,87572.0,87570.0,0.03057414]
[1764683244278,0.05435,87565.0,87564.0,0.58785]
[1764683244476,0.05435,87565.0,87564.0,0.60570399]
[1764683245079,0.05435,87565.0,87564.0,0.64654537]
[1764683245285,0.05435,87565.0,87564.0,1.08785]
[1764683245583,0.05435,87565.0,87564.0,0.53054592]
[1764683245788,0.05435,87565.0,87564.0,0.5]
[1764683245984,0.05435,87565.0,87564.0,0.501]
[1764683246183,0.05435,87565.0,87564.0,0.502]
[1764683246787,0.05435,87565.0,87564.0,0.002]
[1764683248087,0.05435,87565.0,87564.0,0.0294]
[1764683248689,0.0114206,87567.0,87564.0,0.0294]
[1764683248690,0.02719123,87576.0,87575.0,0.05657]
[1764683248888,0.07208123,87576.0,87575.0,0.0679895]
[1764683251491,0.00017123,87576.0,87575.0,0.0679895]
[1764683251699,0.00017123,87576.0,87575.0,0.0858409]
[1764683252088,0.00017123,87576.0,87575.0,0.14712556]
[1764683252281,0.00017123,87576.0,87575.0,0.5858409]
[1764683253201,0.00017123,87576.0,87575.0,0.6265813]
[1764683254097,0.05625,87595.0,87594.0,0.0679771]
[1764683254292,0.07381,87600.0,87599.0,0.0679764]
[1764683254492,0.05625,87600.0,87599.0,0.0679764]
[1764683256199,0.05625,87600.0,87599.0,0.0689764]
[1764683258002,0.05625,87600.0,87599.0,0.0699764]
[1764683258503,0.07253,87600.0,87599.0,0.0699764]
[1764683258798,0.07253,87600.0,87599.0,0.05856]
[1764683259004,0.07253,87600.0,87599.0,0.002]
[1764683260605,0.07253,87600.0,87599.0,0.001]
[1764683261006,0.05625,87599.0,87598.0,0.3722165]
[1764683261705,0.05625,87599.0,87598.0,0.4011865]
[1764683263303,0.05625,87599.0,87598.0,0.38977]
[1764683263597,0.05625,87597.0,87596.0,0.53116]
[1764683265208,0.0676673,87593.0,87592.0,0.0114172]
[1764683267108,0.05625,87592.0,87584.0,0.0114183]
[1764683267301,0.05625,87592.0,87581.0,0.0114187]
[1764683267491,0.0676686,87582.0,87581.0,0.0114187]
[1764683267694,0.05625,87582.0,87573.0,0.03054988]
[1764683267909,0.05625,87573.0,87572.0,0.09852978]
[1764683268093,0.05625,87573.0,87572.0,0.0679799]
[1764683270911,0.05625,87573.0,87572.0,0.0689799]
[1764683271810,0.05625,87573.0,87572.0,0.0699799]
[1764683274214,0.06784013,87581.0,87580.0,0.05656]
[1764683274713,0.05642123,87581.0,87580.0,0.05656]
[1764683275212,0.06784003,87581.0,87580.0,0.05656]
[1764683275399,0.05625,87573.0,87572.0,0.05756]
[1764683275599,0.05625,87573.0,87572.0,0.0689799]
[1764683276499,0.05625,87573.0,87572.0,0.0679799]
[1764683277313,0.05625,87573.0,87572.0,0.09952978]
[1764683278212,0.05625,87573.0,87572.0,0.0689799]
[1764683278406,0.05625,87573.0,87572.0,0.0699799]
[1764683279008,0.05642123,87581.0,87580.0,0.0679789]
[1764683279207,0.02734123,87581.0,87580.0,0.0679789]
[1764683279516,0.00017123,87581.0,87580.0,0.0679789]
[1764683279703,0.02734123,87581.0,87580.0,0.0679789]
[1764683280106,0.05642123,87581.0,87580.0,0.0679789]
[1764683283007,0.06784003,87581.0,87580.0,0.05656]
[1764683283708,0.05624,87580.0,87579.0,0.0114189]
[1764683284116,0.05624,87580.0,87579.0,0.0389789]
[1764683284308,0.05624,87580.0,87579.0,0.0661089]
[1764683284811,0.05624,87580.0,87579.0,0.4269089]
[1764683286518,0.00017123,87581.0,87580.0,0.05469]
[1764683286815,0.00017123,87581.0,87580.0,0.08520809]
[1764683287021,0.41704,87594.0,87593.0,0.05469]
[1764683287324,0.41704,87594.0,87593.0,0.0661072]
[1764683287823,0.05624,87603.0,87602.0,0.05469]
[1764683288419,0.01685,87598.0,87597.0,0.0661066]
[1764683288606,0.07309,87598.0,87597.0,0.0661066]
[1764683288812,0.0845065,87598.0,87597.0,0.0389766]
[1764683289219,0.0845065,87598.0,87597.0,0.0661066]
[1764683289715,0.07309,87598.0,87597.0,0.0661066]
[1764683291015,0.0676569,87595.0,87594.0,0.05486123]
[1764683291218,0.05624,87595.0,87594.0,0.02773123]
[1764683291412,0.05624,87595.0,87594.0,0.05486123]
[1764683291614,0.0676569,87595.0,87594.0,0.05486123]
[1764683292011,0.0676569,87595.0,87594.0,0.02773123]
[1764683292321,0.05624,87595.0,87594.0,0.02773123]
[1764683292523,0.05624,87595.0,87594.0,0.05486123]
[1764683293817,0.05624,87595.0,87594.0,0.02773123]
[1764683294219,0.05624,87595.0,87594.0,0.05486123]
[1764683296417,0.05624,87595.0,87594.0,0.00017123]
[1764683299814,0.05624,87582.0,87581.0,0.02756]
[1764683300018,0.05624,87582.0,87561.0,0.01117838]
[1764683300019,0.0676595,87575.0,87574.0,0.03051809]
[1764683300429,0.0676595,87575.0,87574.0,0.05469]
[1764683301029,0.0676595,87575.0,87574.0,0.05569]
[1764683301525,0.0676595,87575.0,87574.0,0.02856]
[1764683301727,0.0676595,87575.0,87574.0,0.001]
[1764683302224,0.0676595,87575.0,87574.0,0.05569]
[1764683302626,0.02786,87575.0,87574.0,0.05469]
[1764683302820,0.02786,87575.0,87574.0,0.0661097]
[1764683303123,0.0676595,87575.0,87574.0,0.09763991]
[1764683303530,0.05624,87575.0,87574.0,0.09763991]
[1764683303725,0.05624,87575.0,87574.0,0.08396255]
[1764683303929,0.05624,87575.0,87574.0,0.08496255]